bitfinex-derivatives/quotes_SOLF0:USTF0_20250211
["timestamp","ask_amount","ask_price","bid_price","bid_amount"]
[1739262524687,1.22099437,204.65,204.6,4.8866]
[1739262524883,1.22099437,204.64,204.6,4.8866]
[1739262525083,1.22099437,204.63,204.6,4.8866]
[1739262525282,1.22099437,204.62,204.6,4.8866]
[1739262525481,1.22099437,204.61,204.6,4.8866]
[1739262526983,1.22099437,204.61,204.59,0.03356346]
[1739262527189,1.22099437,204.6,204.59,0.03356346]
[1739262527384,0.03173699,204.63,204.59,0.03356346]
[1739262528798,0.03173699,204.63,204.59,4.92056346]
[1739262531991,0.03173699,204.63,204.59,0.03356346]
[1739262532292,4.91783699,204.63,204.59,0.03356346]
[1739262532696,4.8865,204.62,204.59,0.03356346]
[1739262533197,0.03173699,204.63,204.59,0.03356346]
[1739262533398,0.03173699,204.63,204.6,4.8866]
[1739262534194,0.03173699,204.63,204.59,0.03356346]
[1739262534398,0.03173699,204.63,204.59,4.92056346]
[1739262534890,0.03173699,204.63,204.6,4.8868]
[1739262535898,0.03173699,204.63,204.61,4.8865]
[1739262537900,0.03173699,204.63,204.59,0.03356346]
[1739262538101,0.03173699,204.63,204.6,4.8868]
[1739262539300,0.03173699,204.63,204.59,0.03356346]
[1739262539599,0.03173699,204.63,204.6,4.8868]
[1739262543403,0.03173699,204.63,204.59,4.92056346]
[1739262545610,4.91783699,204.63,204.59,4.92056346]
[1739262547711,0.03173699,204.63,204.59,4.92056346]
[1739262548712,4.91783699,204.63,204.59,4.92056346]
[1739262550513,0.03173699,204.63,204.59,0.03356346]
[1739262550807,10.66505239,204.62,204.59,0.03356346]
[1739262552612,5.77865239,204.62,204.59,0.03356346]
[1739262553314,0.03173699,204.63,204.59,0.03356346]
[1739262554314,0.03173699,204.63,204.6,4.8866]
[1739262555315,0.03173699,204.63,204.59,0.03356346]
[1739262555510,0.03173699,204.63,204.59,4.92056346]
[1739262558417,0.03173699,204.63,204.6,4.8868]
[1739262559619,0.03173699,204.63,204.62,4.8863]
[1739262559815,5.77865239,204.7,204.61,2.904]
[1739262560017,5.77865239,204.68,204.61,2.904]
[1739262560218,5.77865239,204.68,204.63,4.8859]
[1739262560518,5.77865239,204.68,204.61,2.904]
[1739262561022,5.77865239,204.66,204.63,4.886]
[1739262562324,5.77865239,204.66,204.62,0.03360581]
[1739262563026,0.03155856,204.67,204.66,4.8854]
[1739262565427,0.03155856,204.67,204.64,4.8856]
[1739262565630,5.77865239,204.66,204.64,4.8856]
[1739262565927,5.77865239,204.66,204.65,4.8856]
[1739262566724,0.03155856,204.67,204.65,4.8856]
[1739262567027,5.77865239,204.66,204.63,4.8859]
[1739262567228,5.77865239,204.66,204.62,0.03360581]
[1739262567928,5.77865239,204.66,204.63,4.8859]
[1739262568729,5.77865239,204.66,204.62,0.03360581]
[1739262570725,5.77865239,204.66,204.63,4.886]
[1739262571229,0.03155856,204.67,204.62,0.03360581]
[1739262571426,0.03155856,204.67,204.66,4.8854]
[1739262577835,0.03155856,204.67,204.66,10.66405239]
[1739262578831,0.03155856,204.67,204.66,4.8854]
[1739262582940,0.03155856,204.67,204.66,10.66405239]
[1739262586844,0.03155856,204.67,204.66,4.8854]
[1739262588345,0.03155856,204.67,204.66,10.66405239]
[1739262590647,0.03155856,204.67,204.66,4.8854]
[1739262594645,0.03155856,204.67,204.64,4.8858]
[1739262594947,0.03155856,204.67,204.62,5.8122582]
[1739262595848,0.03155856,204.67,204.62,10.6985582]
[1739262596148,0.03155856,204.67,204.62,0.03360581]
[1739262596850,4.91665856,204.67,204.62,0.03360581]
[1739262597148,0.03155856,204.67,204.62,0.03360581]
[1739262597554,4.91675856,204.67,204.62,4.91980581]
[1739262597946,0.03155856,204.67,204.62,4.91980581]
[1739262599351,0.03155856,204.67,204.62,5.8122582]
[1739262600749,0.03155856,204.67,204.66,10.66405239]
[1739262601450,0.03155856,204.67,204.64,4.8858]
[1739262602150,0.03155856,204.67,204.63,4.886]
[1739262602344,0.03155856,204.67,204.62,5.8122582]
[1739262602743,0.03155856,204.67,204.63,4.886]
[1739262602942,0.03155856,204.67,204.62,5.8122582]
[1739262603450,0.03155856,204.67,204.66,10.66405239]
[1739262606453,5.856e-05,204.67,204.66,10.66405239]
[1739262612465,5.856e-05,204.67,204.64,5.77865239]
[1739262612963,5.856e-05,204.67,204.62,87.85620267]
[1739262614362,5.856e-05,204.67,204.62,92.74240267]
[1739262614766,5.856e-05,204.67,204.63,4.8861]
[1739262616170,5.856e-05,204.67,204.62,5.8122582]
[1739262616463,5.856e-05,204.67,204.64,4.8858]
[1739262616871,5.856e-05,204.67,204.64,5.77865239]
[1739262617060,5.856e-05,204.67,204.66,4.8854]
[1739262617562,5.856e-05,204.67,204.64,5.77865239]
[1739262618868,5.856e-05,204.67,204.65,4.8856]
[1739262621872,5.856e-05,204.67,204.64,5.77865239]
[1739262622173,5.856e-05,204.67,204.66,4.8854]
[1739262625470,5.856e-05,204.67,204.66,10.66405239]
[1739262628175,5.856e-05,204.67,204.66,4.8854]
[1739262628977,5.856e-05,204.67,204.62,5.8122582]
[1739262629877,5.856e-05,204.67,204.63,4.8859]
[1739262631580,5.856e-05,204.67,204.64,5.77865239]
[1739262631779,5.856e-05,204.67,204.66,10.66405239]
[1739262634675,53.74902433,204.77,204.72,4.8838]
[1739262634980,53.74902433,204.77,204.73,5.77865239]
[1739262635680,53.74902433,204.77,204.76,4.883]
[1739262637785,53.74902433,204.77,204.73,5.81156426]
[1739262638484,53.74902433,204.77,204.74,4.8832]
[1739262639782,53.74902433,204.77,204.76,4.883]
[1739262641686,53.74902433,204.77,204.75,5.77865239]
[1739262641880,53.74902433,204.77,204.74,4.8834]
[1739262642279,53.74902433,204.77,204.73,5.81156426]
[1739262642486,53.74902433,204.77,204.76,4.883]
[1739262643888,53.74902433,204.77,204.75,10.66185239]
[1739262644591,53.74902433,204.77,204.76,4.883]
[1739262648995,5.77865239,204.84,204.81,4.8816]
[1739262649196,5.77865239,204.84,204.78,5.77865239]
[1739262649396,5.77865239,204.84,204.8,0.03522469]
[1739262649900,5.77865239,204.84,204.8,4.91722469]
[1739262650194,5.77865239,204.84,204.8,0.03522469]
[1739262651701,5.77865239,204.84,204.81,4.8816]
[1739262651892,8.92115239,204.86,204.8,5.81387708]
[1739262652098,3.1425,204.86,204.8,5.81387708]
[1739262652298,8.92115239,204.86,204.82,4.8813]
[1739262654203,8.92115239,204.86,204.83,4.8812]
[1739262656302,8.92115239,204.86,204.8,5.81387708]
[1739262656502,8.92115239,204.86,204.84,4.881]
[1739262657803,8.92115239,204.86,204.81,4.8816]
[1739262658102,8.92115239,204.86,204.8,5.81387708]
[1739262659304,5.77865239,204.9,204.82,5.77865239]
[1739262659702,5.77865239,204.9,204.84,0.03405894]
[1739262659903,5.77865239,204.9,204.86,4.8805]
[1739262660106,5.77865239,204.9,204.84,0.03405894]
[1739262660305,5.77865239,204.88,204.84,0.03405894]
[1739262660808,10.65905239,204.88,204.84,4.91505894]
[1739262661803,10.65905239,204.88,204.84,0.03405894]
[1739262662009,4.8806,204.86,204.84,0.03405894]
[1739262662211,5.77865239,204.86,204.78,5.77865239]
[1739262662410,5.77865239,204.84,204.78,5.77865239]
[1739262662603,10.65995239,204.84,204.8,4.882]
[1739262662809,5.77865239,204.82,204.76,5.77865239]
[1739262663009,5.77865239,204.8,204.74,12.94325239]
[1739262663210,5.77865239,204.8,204.76,4.883]
[1739262663410,0.03104654,204.79,204.75,0.03084054]
[1739262664111,5.77865239,204.78,204.75,0.03084054]
[1739262664301,5.77865239,204.76,204.75,0.03084054]
[1739262665910,10.66165239,204.76,204.75,0.03084054]
[1739262666111,5.77865239,204.76,204.75,0.03084054]
[1739262667106,0.03104654,204.79,204.75,0.03084054]
[1739262667711,4.91334654,204.79,204.75,0.03084054]
[1739262667913,5.77865239,204.78,204.75,0.03084054]
[1739262668814,5.77865239,204.76,204.68,5.77865239]
[1739262669009,5.77865239,204.74,204.66,5.77865239]
[1739262669719,5.77865239,204.74,204.68,4.8848]
[1739262669920,5.77865239,204.72,204.64,5.77865239]
[1739262670118,5.77865239,204.72,204.69,0.03567639]
[1739262671923,10.66265239,204.72,204.69,0.03567639]
[1739262672120,5.77865239,204.72,204.69,0.03567639]
[1739262672419,0.03725863,204.73,204.71,4.884]
[1739262672725,0.03725863,204.73,204.7,5.77865239]
[1739262673224,0.03725863,204.73,204.72,4.8839]
[1739262674623,132.86975146,204.81,204.7,9.01794282]
[1739262674824,132.86975146,204.81,204.79,4.8822]
[1739262675030,132.86975146,204.81,204.76,9.01794282]
[1739262675324,132.86975146,204.81,204.8,4.882]
[1739262676138,0.03160598,204.83,204.82,4.8816]
[1739262678043,0.03160598,204.83,204.82,13.89954282]
[1739262680542,0.03160598,204.83,204.81,4.8818]
[1739262680744,0.03160598,204.83,204.79,15.91274282]
[1739262681137,0.03160598,204.83,204.8,4.882]
[1739262684045,0.03160598,204.83,204.78,0.03614048]
[1739262685544,0.03160598,204.83,204.78,4.91844048]
[1739262685947,0.03160598,204.83,204.78,0.03614048]
[1739262686847,0.03160598,204.83,204.82,4.8816]
[1739262689650,2.8957,204.91,204.87,4.8803]
[1739262689851,2.8957,204.91,204.82,9.01794282]
[1739262690347,2.8957,204.91,204.88,4.8799]
[1739262690649,2.8957,204.91,204.82,9.01794282]
[1739262690850,2.8957,204.91,204.87,0.03183697]
[1739262691050,2.8957,204.91,204.88,4.88]
[1739262691551,4.215,204.96,204.9,4.8797]
[1739262691750,7.2402,204.96,204.87,0.03183697]
[1739262692350,9.01794282,204.93,204.87,0.03183697]
[1739262693755,4.8794,204.92,204.87,0.03183697]
[1739262693954,9.01794282,204.93,204.87,0.03183697]
[1739262694757,4.8797,204.9,204.87,0.03183697]
[1739262695557,4.8794,204.92,204.87,0.03183697]
[1739262695759,9.01794282,204.93,204.87,0.03183697]
[1739262696264,4.8796,204.91,204.87,0.03183697]
[1739262696552,16.25814282,204.96,204.87,0.03183697]
[1739262696758,4.8785,204.95,204.87,0.03183697]
[1739262697053,7.2402,204.96,204.87,0.03183697]
[1739262697258,3.0252,204.96,204.88,9.01794282]
[1739262697650,132.86975146,204.99,204.88,9.01794282]
[1739262697858,132.86975146,204.99,204.91,9.01794282]
[1739262698358,132.86975146,204.99,204.96,4.8782]
[1739262698756,132.86975146,204.99,204.95,4.8784]
[1739262699356,132.86975146,204.99,204.92,0.03476025]
[1739262699556,4.8775,205.0,204.93,4.8788]
[1739262700153,4.8775,205.0,204.94,4.8786]
[1739262700557,7.9371,205.01,204.92,0.03476025]
[1739262700752,3.06,205.01,204.92,0.03476025]
[1739262700957,4.8775,204.99,204.93,4.8789]
[1739262702254,4.8778,204.98,204.93,4.8789]
[1739262703560,4.8775,204.99,204.95,4.8784]
[1739262705060,4.878,204.97,204.93,4.8787]
[1739262705756,3.06,205.01,204.92,0.03476025]
[1739262705959,3.06,205.01,204.92,4.91386025]
[1739262706457,3.06,205.01,204.92,0.03476025]
[1739262706761,4.8774,205.0,204.96,4.8782]
[1739262707161,4.8774,205.0,204.96,4.91337428]
[1739262707366,3.06,205.01,204.96,0.03517428]
[1739262707563,3.06,205.01,204.97,4.8778]
[1739262708663,4.8773,205.0,204.97,4.8778]
[1739262708961,4.8773,205.0,204.96,4.91337428]
[1739262710464,4.8773,205.0,204.96,0.03517428]
[1739262710762,4.8776,204.99,204.96,0.03517428]
[1739262710962,3.06,205.01,204.96,0.03517428]
[1739262711164,4.8778,204.98,204.96,0.03517428]
[1739262711765,4.878,204.97,204.96,0.03517428]
[1739262712362,4.8782,204.96,204.92,4.879]
[1739262712558,9.01794282,204.99,204.91,4.8793]
[1739262712959,4.8787,204.94,204.88,6.9308]
[1739262713364,3.06,205.01,204.88,6.9308]
[1739262713365,9.01794282,204.96,204.88,6.9308]
[1739262713565,4.8792,204.92,204.89,0.03416298]
[1739262713765,0.03370028,204.93,204.89,0.03416298]
[1739262719175,4.91270028,204.93,204.89,0.03416298]
[1739262720174,0.03370028,204.93,204.89,0.03416298]
[1739262720675,4.91270028,204.93,204.89,0.03416298]
[1739262721177,0.03370028,204.93,204.89,0.03416298]
[1739262721979,0.03370028,204.93,204.92,4.8792]
[1739262723274,3.06,205.01,204.97,4.8778]
[1739262724172,132.86975146,205.04,204.94,9.01794282]
[1739262724380,132.86975146,205.04,204.97,9.05418695]
[1739262724976,132.86975146,205.04,205.0,4.8771]
[1739262725175,132.86975146,205.04,204.97,9.05418695]
[1739262725570,132.86975146,205.04,204.99,4.8775]
[1739262725775,132.86975146,205.04,204.97,9.05418695]
[1739262726681,4.8759,205.06,204.97,9.05418695]
[1739262726981,4.8759,205.06,205.0,4.8772]
[1739262727374,4.8762,205.05,204.99,4.8774]
[1739262727574,4.8762,205.05,204.97,9.01794282]
[1739262727883,4.8762,205.05,205.0,0.03288932]
[1739262728985,4.8762,205.05,205.0,4.91018932]
[1739262730585,58.37564879,205.08,205.04,4.8762]
[1739262731186,58.37564879,205.08,205.05,4.876]
[1739262731581,63.25104879,205.08,205.04,0.03625641]
[1739262731793,63.25104879,205.08,205.04,4.91255641]
[1739262733687,63.25104879,205.08,205.04,0.03625641]
[1739262733886,132.86975146,205.11,205.04,0.03625641]
[1739262734388,9.01794282,205.11,205.04,0.03625641]
[1739262734882,4.876,205.06,205.04,0.03625641]
[1739262735085,2.91,205.13,205.04,0.03625641]
[1739262735390,4.8753,205.09,205.05,4.8761]
[1739262735587,2.91,205.13,205.05,4.8761]
[1739262736489,2.91,205.13,205.04,0.03625641]
[1739262736683,2.91,205.13,205.04,4.91255641]
[1739262736879,4.8748,205.11,205.04,4.91255641]
[1739262737084,2.91,205.13,205.05,4.8761]
[1739262737587,2.91,205.13,205.04,0.03625641]
[1739262738291,4.8745,205.12,205.04,0.03625641]
[1739262738486,2.91,205.13,205.04,0.03625641]
[1739262740286,4.8757,205.07,205.04,0.03625641]
[1739262741392,4.8754,205.08,205.04,0.03625641]
[1739262742291,4.8757,205.07,205.04,0.03625641]
[1739262742590,2.91,205.13,205.04,0.03625641]
[1739262742791,4.876,205.06,205.04,0.03625641]
[1739262742991,132.86975146,205.17,205.04,0.03625641]
[1739262743197,132.86975146,205.17,205.11,9.01794282]
[1739262743382,132.86975146,205.17,205.16,4.8735]
[1739262746092,140.62545146,205.28,205.19,4.8727]
[1739262746494,140.62545146,205.28,205.21,0.03752508]
[1739262748195,135.75475146,205.28,205.21,0.03752508]
[1739262749196,4.8713,205.26,205.21,0.03752508]
[1739262751498,4.8714,205.25,205.21,0.03752508]
[1739262751694,135.75475146,205.28,205.21,0.03752508]
[1739262752392,4.8717,205.24,205.21,0.03752508]
[1739262753292,4.8718,205.23,205.21,0.03752508]
[1739262753592,2.885,205.28,205.22,4.872]
[1739262754093,4.8713,205.26,205.22,4.872]
[1739262754300,2.885,205.28,205.21,0.03752508]
[1739262754693,4.8714,205.25,205.21,0.03752508]
[1739262754999,2.885,205.28,205.22,4.872]
[1739262755203,4.8713,205.26,205.22,4.872]
[1739262756598,2.885,205.28,205.21,0.03752508]
[1739262756799,4.8709,205.27,205.23,4.8718]
[1739262756995,2.885,205.28,205.21,0.03752508]
[1739262757202,4.8701,205.31,205.26,4.8709]
[1739262757402,2.9919,205.34,205.23,9.01794282]
[1739262757699,2.9919,205.34,205.26,0.03435429]
[1739262757896,4.8697,205.33,205.27,4.8709]
[1739262759002,7.8611,205.34,205.26,9.05229711]
[1739262759295,2.9919,205.34,205.26,9.05229711]
[1739262759695,2.9919,205.34,205.29,9.01794282]
[1739262760603,2.9919,205.34,205.32,4.8696]
[1739262760802,2.9919,205.34,205.29,9.01794282]
[1739262761204,2.9919,205.34,205.29,9.04935992]
[1739262763707,2.9919,205.34,205.29,0.0314171]
[1739262764008,4.8695,205.33,205.29,0.0314171]
[1739262764602,4.8699,205.31,205.29,0.0314171]
[1739262765210,4.8697,205.32,205.29,0.0314171]
[1739262765508,2.9919,205.34,205.29,0.0314171]
[1739262765712,3.951,205.38,205.29,9.04935992]
[1739262766103,3.0105,205.39,205.29,9.04935992]
[1739262766303,4.8687,205.36,205.29,9.04935992]
[1739262766507,3.0105,205.39,205.29,9.04935992]
[1739262767510,4.8697,205.33,205.29,9.04935992]
[1739262768209,9.01794282,205.38,205.29,0.0314171]
[1739262770009,4.8701,205.31,205.29,0.0314171]
[1739262772113,4.8696,205.33,205.29,0.0314171]
[1739262773015,4.8696,205.33,205.29,4.9017171]
[1739262773314,4.8697,205.32,205.29,4.9017171]
[1739262773616,4.8697,205.32,205.29,0.0314171]
[1739262773917,9.01794282,205.38,205.29,0.0314171]
[1739262774315,4.8701,205.31,205.29,0.0314171]
[1739262775018,9.01794282,205.38,205.29,0.0314171]
[1739262775417,4.8689,205.36,205.29,0.0314171]
[1739262775618,5.73823407,205.37,205.31,5.73823407]
[1739262776217,4.8697,205.32,205.31,5.73823407]
[1739262776413,5.73823407,205.37,205.29,5.76965117]
[1739262777222,4.8701,205.31,205.29,5.76965117]
[1739262777923,132.86975146,205.36,205.29,5.76965117]
[1739262778123,132.86975146,205.36,205.31,5.73823407]
[1739262778725,4.869,205.35,205.33,5.73823407]
[1739262778924,132.86975146,205.36,205.33,5.73823407]
[1739262779222,4.8692,205.34,205.33,5.73823407]
[1739262779424,132.86975146,205.33,205.31,5.73823407]
[1739262780120,132.86975146,205.33,205.29,5.76965117]
[1739262780322,132.86975146,205.33,205.29,0.0314171]
[1739262780527,4.8701,205.3,205.29,0.0314171]
[1739262781526,132.86975146,205.32,205.29,5.76965117]
[1739262781830,4.8699,205.31,205.29,5.76965117]
[1739262782021,132.86975146,205.32,205.29,5.76965117]
[1739262782525,4.8699,205.31,205.29,5.76965117]
[1739262782825,132.86975146,205.32,205.29,5.76965117]
[1739262783329,166.22022775,205.3,205.29,5.76965117]
[1739262783519,166.22022775,205.3,205.29,0.53118745]
[1739262783726,166.22022775,205.3,205.26,4.8711]
[1739262784425,166.22022775,205.3,205.25,8.96869395]
[1739262784623,166.25311885,205.3,205.27,4.8708]
[1739262784818,166.25311885,205.3,205.26,0.03402804]
[1739262785223,166.25311885,205.3,205.26,4.90512804]
[1739262785425,166.25311885,205.3,205.26,0.03402804]
[1739262786425,4.8709,205.27,205.26,0.03402804]
[1739262788022,3.0467911,205.3,205.17,8.96869395]
[1739262788228,3.0139,205.3,205.17,8.96869395]
[1739262788620,8.96869395,205.28,205.15,7.0085]
[1739262788928,8.96869395,205.28,205.15,8.7508]
[1739262789129,0.03117094,205.24,205.19,0.03199739]
[1739262789329,4.8727,205.2,205.19,0.03199739]
[1739262789628,0.03117094,205.24,205.19,0.03199739]
[1739262790730,0.03117094,205.24,205.2,4.8725]
[1739262791131,0.03117094,205.24,205.19,0.03199739]
[1739262791432,4.872,205.22,205.19,0.03199739]
[1739262791931,0.03117094,205.24,205.19,0.03199739]
[1739262792127,0.03117094,205.24,205.11,8.96869395]
[1739262792333,16.27019395,205.25,205.11,8.96869395]
[1739262792629,4.873,205.19,205.14,4.8738]
[1739262793237,4.8731,205.18,205.14,4.8738]
[1739262793526,0.03259361,205.19,205.15,4.8737]
[1739262794432,0.03259361,205.19,205.14,9.00335685]
[1739262795033,4.90539361,205.19,205.14,9.00335685]
[1739262795832,4.90539361,205.19,205.15,4.8736]
[1739262796032,0.03259361,205.19,205.14,9.00335685]
[1739262796532,0.03259361,205.19,205.18,4.873]
[1739262796732,0.03259361,205.19,205.14,9.00335685]
[1739262797233,0.03259361,205.19,205.17,4.8732]
[1739262798533,0.03259361,205.19,205.15,4.8736]
[1739262798733,0.03259361,205.19,205.14,9.00335685]
[1739262799334,0.03259361,205.19,205.16,4.8733]
[1739262799532,4.90549361,205.19,205.14,9.00335685]
[1739262799734,0.03259361,205.19,205.14,9.00335685]
[1739262801131,0.03259361,205.19,205.18,4.873]
[1739262801629,135.3179211,205.27,205.17,8.96869395]
[1739262801835,140.1888211,205.27,205.22,4.8718]
[1739262802039,140.1888211,205.27,205.17,8.96869395]
[1739262802435,135.3179211,205.27,205.24,4.8715]
[1739262802633,135.3179211,205.27,205.17,8.96869395]
[1739262802837,135.3179211,205.27,205.23,0.03386079]
[1739262803034,0.03266028,205.28,205.23,0.03386079]
[1739262803538,9.00135423,205.28,205.23,0.03386079]
[1739262803741,9.00135423,205.28,205.17,4.8732]
[1739262804035,8.96869395,205.28,205.14,8.96869395]
[1739262804237,4.8716,205.24,205.19,4.8725]
[1739262804631,8.96869395,205.28,205.14,8.96869395]
[1739262804937,0.03419442,205.24,205.19,0.03291024]
[1739262805626,0.03419442,205.24,205.19,4.90571024]
[1739262805828,0.03419442,205.24,205.19,0.03291024]
[1739262806032,0.03419442,205.24,205.2,8.96869395]
[1739262806237,0.03419442,205.24,205.21,4.8722]
[1739262806738,4.8718,205.23,205.19,4.90551024]
[1739262807034,0.03419442,205.24,205.19,0.03291024]
[1739262808739,4.8719,205.23,205.19,4.90571024]
[1739262809439,4.8721,205.22,205.19,0.03291024]
[1739262810243,0.03419442,205.24,205.19,0.03291024]
[1739262810734,4.8725,205.2,205.19,0.03291024]
[1739262813538,4.8722,205.22,205.19,0.03291024]
[1739262813837,0.03419442,205.24,205.19,0.03291024]
[1739262814233,4.8725,205.21,205.19,0.03291024]
[1739262814437,0.03419442,205.24,205.19,0.03291024]
[1739262814940,4.8725,205.2,205.19,0.03291024]
[1739262817142,0.03419442,205.24,205.19,0.03291024]
[1739262818839,4.872,205.23,205.19,4.90551024]
[1739262819641,4.90579442,205.24,205.2,4.8725]
[1739262819841,0.03419442,205.24,205.19,0.03291024]
[1739262820240,0.03419442,205.24,205.21,4.8721]
[1739262821037,4.90579442,205.24,205.2,4.8725]
[1739262821244,0.03419442,205.24,205.19,0.03291024]
[1739262823045,0.03419442,205.24,205.21,4.8723]
[1739262823847,0.03419442,205.24,205.22,4.872]
[1739262824243,0.03419442,205.24,205.2,8.96869395]
[1739262825448,0.03419442,205.24,205.21,4.8722]
[1739262825639,0.03419442,205.24,205.2,8.96869395]
[1739262826944,0.03419442,205.24,205.19,3.99611024]
[1739262826945,0.03419442,205.24,205.21,4.8721]
[1739262828247,0.03419442,205.24,205.19,3.99611024]
[1739262828841,4.8724,205.21,205.19,3.99611024]
[1739262829442,0.03419442,205.24,205.19,3.99611024]
[1739262830242,0.03419442,205.24,205.19,0.03291024]
[1739262830645,4.8724,205.21,205.19,0.03291024]
[1739262832351,0.03419442,205.24,205.19,0.03291024]
[1739262832555,135.35211552,205.24,205.19,0.03291024]
[1739262833947,4.872,205.22,205.19,0.03291024]
[1739262834847,135.35211552,205.24,205.19,4.90561024]
[1739262835056,4.8719,205.23,205.19,4.90561024]
[1739262835451,135.35211552,205.24,205.19,0.03291024]
[1739262835753,0.03419442,205.24,205.22,5.7437243]
[1739262836355,0.03419442,205.24,205.22,10.6155243]
[1739262836859,0.03419442,205.24,205.23,4.8718]
[1739262837951,135.3179211,205.26,205.25,4.8713]
[1739262838152,135.3179211,205.26,205.25,10.6150243]
[1739262839758,135.3179211,205.26,205.23,0.03486108]
[1739262840160,140.1891211,205.26,205.23,0.03486108]
[1739262840362,4.8712,205.26,205.23,0.03486108]
[1739262840556,0.03433282,205.28,205.23,0.03486108]
[1739262840757,4.8714,205.25,205.23,0.03486108]
[1739262841157,0.03433282,205.28,205.23,0.03486108]
[1739262841352,4.8711,205.26,205.23,0.03486108]
[1739262841558,0.03433282,205.28,205.23,0.03486108]
[1739262841968,4.8709,205.27,205.23,0.03486108]
[1739262842168,0.03433282,205.28,205.23,0.03486108]
[1739262842661,0.03433282,205.28,205.23,9.00446862]
[1739262845762,0.03433282,205.28,205.26,4.871]
[1739262846959,0.03433282,205.28,205.27,4.8709]
[1739262847865,0.03433282,205.28,205.25,4.8712]
[1739262848066,0.03433282,205.28,205.23,9.00446862]
[1739262849464,0.03433282,205.28,205.24,4.8715]
[1739262849663,0.03433282,205.28,205.23,9.00446862]
[1739262850363,0.03433282,205.28,205.27,4.8709]
[1739262858763,0.03433282,205.28,205.27,4.8709]
[1739262861671,0.03433282,205.28,205.27,10.6093947]
[1739262863476,0.03433282,205.28,205.27,5.7384947]
[1739262865679,0.03433282,205.28,205.27,10.6093947]
[1739262869777,0.03433282,205.28,205.23,5.77335578]
[1739262870481,0.03433282,205.28,205.23,10.64495578]
[1739262871386,0.03433282,205.28,205.25,5.7384947]
[1739262871587,0.03433282,205.28,205.25,10.6095947]
[1739262872384,0.03433282,205.28,205.27,5.7384947]
[1739262872586,0.03433282,205.28,205.27,10.6093947]
[1739262873492,0.03433282,205.28,205.27,5.7384947]
[1739262876091,0.03433282,205.28,205.27,10.6093947]
[1739262878293,135.3179211,205.34,205.27,5.7384947]
[1739262878495,135.3179211,205.34,205.33,10.6078947]
[1739262879296,135.3179211,205.34,205.33,5.7384947]
[1739262879491,135.3179211,205.34,205.31,5.77360462]
[1739262879793,140.1869211,205.35,205.31,5.77360462]
[1739262879998,140.21857757,205.35,205.31,5.77360462]
[1739262880794,140.21857757,205.35,205.31,0.03510992]
[1739262881999,135.34957757,205.35,205.31,10.64350462]
[1739262882298,0.03165647,205.35,205.31,10.64350462]
[1739262883399,4.90065647,205.35,205.31,5.77360462]
[1739262883794,0.03165647,205.35,205.33,5.7384947]
[1739262884600,4.90065647,205.35,205.31,5.77360462]
[1739262885201,4.90065647,205.35,205.31,0.03510992]
[1739262885499,4.8692,205.34,205.31,0.03510992]
[1739262885699,0.03165647,205.35,205.29,5.7384947]
[1739262885904,4.8696,205.33,205.29,5.7384947]
[1739262886297,0.03165647,205.35,205.27,5.7384947]
[1739262886298,5.7384947,205.34,205.27,5.7384947]
[1739262886895,5.7384947,205.34,205.28,0.03123903]
[1739262887201,0.03362026,205.33,205.28,0.03123903]
[1739262887500,4.8699,205.32,205.28,0.03123903]
[1739262888802,4.8702,205.3,205.28,0.03123903]
[1739262889003,4.8702,205.3,205.25,5.7384947]
[1739262889303,4.8699,205.31,205.25,5.7384947]
[1739262889493,4.8699,205.31,205.26,4.8711]
[1739262890002,4.8699,205.31,205.26,4.90705636]
[1739262890704,138.4356211,205.32,205.27,5.7384947]
[1739262890903,4.8702,205.3,205.27,5.7384947]
[1739262891202,4.8702,205.3,205.26,4.90705636]
[1739262892005,138.4356211,205.32,205.26,0.03595636]
[1739262892198,4.8699,205.31,205.27,4.8708]
[1739262892705,4.8699,205.31,205.27,10.6092947]
[1739262893506,4.8699,205.31,205.27,5.7384947]
[1739262893702,4.8702,205.3,205.27,5.7384947]
[1739262896205,6.0207,205.32,205.27,5.7384947]
[1739262896406,4.87,205.31,205.27,10.6092947]
[1739262896605,6.0207,205.32,205.27,5.7384947]
[1739262897303,4.8704,205.29,205.26,0.03595636]
[1739262897600,11.7591947,205.32,205.26,0.03595636]
[1739262898202,5.7384947,205.28,205.21,5.7384947]
[1739262899102,5.7384947,205.3,205.23,5.7384947]
[1739262899303,0.03353904,205.27,205.23,5.7384947]
[1739262899607,0.03353904,205.27,205.24,4.8715]
[1739262900007,0.03353904,205.27,205.23,5.7384947]
[1739262900306,4.8713,205.26,205.22,0.03515879]
[1739262900607,0.03353904,205.27,205.22,0.03515879]
[1739262901506,4.90463904,205.27,205.22,0.03515879]